Cogmind - Beta 13 @@@ ROGUE MODE // 2024.04.14 @ 00:16:09 Player: m1m1c Result: Destroyed by X-62 Marksman with Pulse Rifle Performance ------------- Evolutions (3) 1500 Regions Visited (8) 1600 Robots Destroyed (48) 240 Value Destroyed (894) 894 Prototype IDs (3) 60 Alien Tech Used (0) 0 Bonus (568) 568 TOTAL SCORE: 4862 Bonus ------- Follower Combat Kills 68 Entered DSFs 500 Cogmind --------- Core Integrity 0/700 Matter 204/300 Energy 130/150 System Corruption 0% Temperature Cool (36) Movement Walking (120) Location -7/DSF Parts ------- > --- POWER (1) -------- Micro Nuclear Core > --- PROPULSION (5) --- Carbon-fiber Leg > --- UTILITY (5) ------ Visual Processing Unit Signal Interpreter Transmission Jammer Improved Utility Shielding > --- WEAPON (2) ------- (None) > --- INVENTORY (5) ---- Improved Titanium Leg Improved Titanium Leg Missile Launcher Improved Datajack Peak State ------------ > --- POWER ------------ (None) > --- PROPULSION ------- Nuclear Pulse Thruster Nuclear Pulse Thruster Nuclear Pulse Thruster Nuclear Pulse Thruster > --- UTILITY ---------- Visual Processing Unit Signal Interpreter Transmission Jammer Improved Utility Shielding > --- WEAPON ----------- (None) > --- INVENTORY -------- Missile Launcher Improved Datajack [Rating: 30] Favorites ----------- Power Cooled Ion Engine Engine Cooled Ion Engine Power Core Light Nuclear Core Propulsion Aluminum Leg Treads Light Treads Leg Aluminum Leg Flight Unit Flight Unit Utility ECM Suite Device ECM Suite Storage Medium Storage Unit Processor Signal Interpreter Protection Improved Utility Shielding Weapon EM Shotgun Energy Gun EM Shotgun Energy Cannon Advanced Beam Cannon Ballistic Gun Heavy Assault Rifle Ballistic Cannon Light Cannon Launcher Grenade Launcher Build | -11 -10 -10 -9 -9 -8 -8 -7 -7 ------- Run | Yrd Mat Min Mat Min Mat Sto Fac DSF Slots Evolved 6 | . . . 2 . 2 . 2 . Power . | . . . . . . . . . Propulsion 3 | . . . 2 . . . 1 . Utility 3 | . . . . . 2 . 1 . Weapon . | . . . . . . . . . Parts Attached 61 | 7 10 2 11 . 5 12 1 13 Power 12 | 1 2 1 4 . . . . 4 Engine 10 | 1 1 1 4 . . . . 3 Core 2 | . 1 . . . . . . 1 Reactor . | . . . . . . . . . Propulsion 16 | 2 . . 3 . 1 3 . 7 Treads 1 | . . . 1 . . . . . Leg 6 | 2 . . 2 . 1 . . 1 Wheel . | . . . . . . . . . Hover . | . . . . . . . . . Flight 9 | . . . . . . 3 . 6 Utility 13 | 1 2 . 1 . 3 3 1 2 Device 5 | . 1 . . . 1 2 . 1 Storage 4 | 1 . . 1 . 1 1 . . Processor 3 | . 1 . . . 1 . 1 . Hackware . | . . . . . . . . . Protection 1 | . . . . . . . . 1 Artifact . | . . . . . . . . . Weapon 20 | 3 6 1 3 . 1 6 . . Energy Gun 8 | 2 1 1 1 . . 3 . . Energy Cannon 1 | . . . . . . 1 . . Ballistic Gun 3 | 1 2 . . . . . . . Ballistic Cannon 2 | . 1 . 1 . . . . . Launcher 6 | . 2 . 1 . 1 2 . . Special Weapon . | . . . . . . . . . Impact Weapon . | . . . . . . . . . Slashing Weapon . | . . . . . . . . . Piercing Weapon . | . . . . . . . . . Special Melee Weapon . | . . . . . . . . . Unidentified Prototypes 3 | . . . 1 . . 2 . . Parts Lost 29 | . 3 2 . . 1 15 . 8 Power 4 | . 1 1 . . . 1 . 1 Propulsion 14 | . . 1 . . . 7 . 6 Utility 5 | . . . . . 1 3 . 1 Weapon 6 | . 2 . . . . 4 . . Highest Loss Streak 10 | . 1 2 . . 1 10 . 8 To Critical Strikes . | . . . . . . . . . Average Slot Usage (%) 87 | . 93 67 93 100 94 80 23 46 Engine 8 | . 9 8 11 11 9 7 . . Treads 4 | . . . 9 11 7 . . . Leg 27 | . 28 15 33 33 28 24 . . Flight 1 | . . . . . . 5 . 13 Device 10 | . 7 14 11 11 13 11 7 7 Storage 10 | . 14 14 11 11 9 10 . . Processor 4 | . 4 . . . 9 9 15 15 Energy Gun 7 | . 10 13 8 11 9 2 . . Energy Cannon 1 | . . . . . . 4 . . Ballistic Cannon 1 | . . . 6 . . . . . Launcher 6 | . 9 . 2 11 9 5 . . Naked Turns . | . . . . . . . . . Heaviest Build 40 | 12 17 15 26 26 40 40 1 10 Greatest Support 45 | 20 20 20 30 30 45 45 3 24 Greatest Overweight (x) 2 | 1 . 1 . . 1 2 . 2 Average Overweight (x) . | . . . . . . . . . Largest Inventory Capacity 15 | 8 8 8 10 10 15 15 5 5 Average Capacity 10 | 7 8 8 9 10 13 13 5 5 Most Carried 13 | 2 8 7 10 10 11 13 4 5 Average Carried 8 | 1 5 6 8 9 9 10 4 3 Final Capacity 15 | 8 8 8 10 10 15 5 5 5 Final Carried 11 | 2 7 6 10 10 11 5 4 4 Class Distribution -------------------- 91% | Mutant 8% | Scavenger-Mutant Dominant Class ---------------- Mutant | -10/Materials Mutant | -10/Mines Mutant | -9/Materials Mutant | -9/Mines Mutant | -8/Materials Mutant | -8/Storage Mutant | -7/Factory Mutant | -7/DSF Resources | -11 -10 -10 -9 -9 -8 -8 -7 -7 ----------- Run | Yrd Mat Min Mat Min Mat Sto Fac DSF Matter Collected 1183 | 238 . 258 130 41 54 458 . 4 Remotely . | . . . . . . . . . Salvage Created 1136 | . 272 77 240 39 112 396 . . Parts 74 | . 18 . 18 3 11 24 . . Haulers Intercepted 5 | . . . 1 . 1 3 . . Recyclers Shooed 2 | . . . . . 2 . . . Parts Field Recycled . | . . . . . . . . . Retrieved Matter . | . . . . . . . . . Parts Self-Destructed . | . . . . . . . . . Prevented . | . . . . . . . . . Kills | -11 -10 -10 -9 -9 -8 -8 -7 -7 ------- Run | Yrd Mat Min Mat Min Mat Sto Fac DSF Combat Hostiles Destroyed 31 | . 8 1 5 6 1 10 . . Guns 6 | . 4 1 1 . . . . . Cannons 2 | . . . . . . 2 . . AOE 22 | . 4 . 4 6 1 7 . . Classes Destroyed 10 | . 5 1 3 . 1 . . . Worker 2 | . . . . . 1 1 . . Builder 4 | . 2 . . . . 2 . . Hauler 5 | . . . 1 . 1 3 . . Recycler 3 | . 1 . 1 . 1 . . . Operator 1 | . . . 1 . . . . . Watcher 3 | . 1 . . . 2 . . . Swarmer 17 | . 3 . 4 6 . 4 . . Grunt 8 | . 5 . . . . 3 . . Sentry 5 | . . . 1 . 1 3 . . Assembled 1 | . . 1 . . . . . . Best Kill Streak 7 | . 7 1 5 3 4 6 . . Combat Bots Only 5 | . 5 1 4 3 1 4 . . Max Kills in Single Turn 4 | . 2 1 4 3 2 4 . . Gunslinging . | . . . . . . . . . Exploded 4 | . 1 . 4 3 1 4 . . Melee . | . . . . . . . . . Uniques/NPCs Destroyed . | . . . . . . . . . Combat | -11 -10 -10 -9 -9 -8 -8 -7 -7 -------- Run | Yrd Mat Min Mat Min Mat Sto Fac DSF Hostile Shots Fired 277 | . 38 7 17 8 18 135 . 54 Missed 101 | . 11 . 10 3 7 55 . 15 Damage Taken 3364 | . 564 160 101 44 166 1273 . 1056 Core 1416 | . 149 44 25 9 42 435 . 712 Absorbed by Shields . | . . . . . . . . . Redirected to Shielding 42 | . . . . . . . . 42 Core Remaining (%) 56 | 100 . 22 . 91 . 13 . . Volleys Fired 110 | . 27 15 20 3 13 32 . . Largest 2 | . 2 1 2 2 1 2 . . Hottest 104 | . 70 40 80 75 36 104 . . Shots Fired 133 | . 39 15 27 5 13 34 . . Gun 54 | . 24 15 11 2 . 2 . . Cannon 31 | . . . 13 . . 18 . . Launcher 48 | . 15 . 3 3 13 14 . . Special . | . . . . . . . . . Kinetic 24 | . 11 . 13 . . . . . Thermal 20 | . . . . . . 20 . . Explosive 48 | . 15 . 3 3 13 14 . . Electromagnetic 41 | . 13 15 11 2 . . . . Robot Hit Streak 8 | . 4 5 7 1 . 8 . . Robot Miss Streak 3 | . 2 2 3 2 . 2 . . Penetration Max . | . . . . . . . . . Secondary Targets . | . . . . . . . . . Shots Hit Robots 64 | . 15 11 16 2 . 20 . . Core Hits 87 | . 21 8 12 9 12 25 . . Critical Kills . | . . . . . . . . . Critical Parts Destroyed . | . . . . . . . . . Critical Strikes . | . . . . . . . . . Melee Attacks . | . . . . . . . . . Impact . | . . . . . . . . . Slashing . | . . . . . . . . . Piercing . | . . . . . . . . . Sneak Attacks . | . . . . . . . . . Combat Hostiles . | . . . . . . . . . Follow-up Attacks . | . . . . . . . . . Damage Inflicted 3634 | . 696 132 566 214 722 1304 . . Guns 416 | . 178 122 116 . . . . . Cannons 389 | . . . 142 . . 247 . . Explosions 2819 | . 518 . 308 214 722 1057 . . Melee . | . . . . . . . . . Ramming 10 | . . 10 . . . . . . Kinetic 201 | . 59 . 142 . . . . . Thermal 281 | . . . . 34 . 247 . . Explosive 2785 | . 518 . 308 180 722 1057 . . Electromagnetic 357 | . 119 122 116 . . . . . Impact . | . . . . . . . . . Slashing . | . . . . . . . . . Piercing . | . . . . . . . . . Highest Corruption 4 | . 4 4 . . . . . . Average Corruption 4 | . 4 4 . . . . . . Corruption Purged . | . . . . . . . . . Corruption Blocked . | . . . . . . . . . Effects 4 | . 1 3 . . . . . . Message Errors 1 | . . 1 . . . . . . Matter Fused 1 | . . 1 . . . . . . Parts Fused 1 | . . 1 . . . . . . Data Loss (minor) 1 | . 1 . . . . . . . Overload Shots . | . . . . . . . . . Overflow Damage 117 | . 11 . 17 . 44 45 . . Projectiles 14 | . . . 5 . . 9 . . Explosions 103 | . 11 . 12 . 44 36 . . Melee . | . . . . . . . . . Knockbacks 1 | . . . 1 . . . . . Impact . | . . . . . . . . . Kinetic 1 | . . . 1 . . . . . Secondary . | . . . . . . . . . Self-Inflicted Damage 138 | . 26 . . . . 112 . . Shots 5 | . 1 . . . . 4 . . Rammed 1 | . . . . . . 1 . . Targets Rammed 3 | . . 2 . . . 1 . . Kicked 2 | . . 2 . . . . . . Crushed . | . . . . . . . . . Highest Temperature 285 | . 99 41 45 . 17 285 . . Average Temperature 65 | . 36 20 14 . 12 135 . . Received Heat Transfer 945 | . 84 60 36 . 63 558 . 144 Siege Activations . | . . . . . . . . . Robots Corrupted . | . . . . . . . . . Combat Hostiles . | . . . . . . . . . Parts Fried . | . . . . . . . . . Impact Corruptions . | . . . . . . . . . Robots Melted 1 | . . . . . . 1 . . Combat Hostiles 1 | . . . . . . 1 . . Parts Melted 1 | . . . . . . 1 . . Heat Transferred 494 | . . . . 50 . 444 . . Parts Sabotaged . | . . . . . . . . . Parts Stolen . | . . . . . . . . . Parts Stripped . | . . . . . . . . . Power Chain Reactions . | . . . . . . . . . Alert | -11 -10 -10 -9 -9 -8 -8 -7 -7 ------- Run | Yrd Mat Min Mat Min Mat Sto Fac DSF Peak Influence 332 | . 268 24 114 252 309 332 150 105 Initial 150 | . . 24 1 44 98 130 150 105 Average 97 | . 80 5 31 144 168 133 150 77 Maximum Alert Level 1 | . 1 . . 1 1 1 . . Low Security (%) 84 | 100 73 100 100 79 59 89 100 100 Level 1 15 | . 26 . . 20 40 10 . . Level 2 . | . . . . . . . . . Level 3 . | . . . . . . . . . Level 4 . | . . . . . . . . . Level 5 . | . . . . . . . . . High Security . | . . . . . . . . . Max Security . | . . . . . . . . . Squads Dispatched 7 | . 1 . 1 . . 5 . . Investigation 1 | . . . . . . 1 . . Extermination . | . . . . . . . . . Reinforcement 4 | . 1 . 1 . . 2 . . Assault 2 | . . . . . . 2 . . Garrison . | . . . . . . . . . Intercept . | . . . . . . . . . Searches Triggered . | . . . . . . . . . Construction Impeded 1 | . . . . . . 1 . . Haulers Reinforced . | . . . . . . . . . Active Scanning Responses . | . . . . . . . . . Cargo Convoy Interrupts . | . . . . . . . . . Stealth | -11 -10 -10 -9 -9 -8 -8 -7 -7 --------- Run | Yrd Mat Min Mat Min Mat Sto Fac DSF Distress Signals 3 | . 1 . 1 . 1 . . . Communications Jammed . | . . . . . . . . . Distress Signals . | . . . . . . . . . Times Spotted 81 | . 11 7 11 5 6 33 . 8 Peak Tracking Total 19 | . 6 8 7 3 2 19 . 6 Tactical Retreats 8 | . 1 1 1 . . 4 . 1 Traps | -11 -10 -10 -9 -9 -8 -8 -7 -7 ------- Run | Yrd Mat Min Mat Min Mat Sto Fac DSF Traps Triggered 4 | . 1 . 1 . . . . 2 Indirectly . | . . . . . . . . . Trap Hack Attempts . | . . . . . . . . . Triggered . | . . . . . . . . . Disarmed . | . . . . . . . . . Reprogrammed . | . . . . . . . . . Reused . | . . . . . . . . . Traps Extracted . | . . . . . . . . . Installed . | . . . . . . . . . Triggered . | . . . . . . . . . Machines | -11 -10 -10 -9 -9 -8 -8 -7 -7 ---------- Run | Yrd Mat Min Mat Min Mat Sto Fac DSF Machines Disabled 5 | . 1 . . 2 2 . . . Max in Single Turn 2 | . 1 . . 2 1 . . . Garrison Access 1 | . . . . . . 1 . . Machines Repaired . | . . . . . . . . . Machines Dismantled . | . . . . . . . . . Machines Sabotaged . | . . . . . . . . . Overloaded Fab Kills . | . . . . . . . . . Hacking | -11 -10 -10 -9 -9 -8 -8 -7 -7 --------- Run | Yrd Mat Min Mat Min Mat Sto Fac DSF Machines Accessed 11 | . 1 . 3 . 3 3 1 . Terminals 9 | . 1 . 3 . 2 2 1 . Fabricators . | . . . . . . . . . Repair Stations . | . . . . . . . . . Recycling Units . | . . . . . . . . . Scanalyzers 1 | . . . . . 1 . . . Garrison Access 1 | . . . . . . 1 . . Total Hacks 19 | . 2 . 6 . 4 6 1 . Successful 14 | . 2 . 5 . 3 3 1 . Failed 5 | . . . 1 . 1 3 . . Catastrophic 3 | . . . 1 . 1 1 . . Database Lockouts . | . . . . . . . . . Manual . | . . . . . . . . . Terminals 16 | . 2 . 6 . 2 5 1 . Fabricators . | . . . . . . . . . Repair Stations . | . . . . . . . . . Recycling Units . | . . . . . . . . . Scanalyzers 2 | . . . . . 2 . . . Garrison Access 1 | . . . . . . 1 . . Terminal Hacks 11 | . 2 . 5 . 1 2 1 . Open DSF 1 | . . . . . . . 1 . Branch Access Points 1 | . . . . . . 1 . . Alert Level 1 | . . . 1 . . . . . Unreport Threat 1 | . . . 1 . . . . . Recall Reinforcements 1 | . . . . . . 1 . . Hauler Manifests 3 | . 1 . 2 . . . . . Zone Layout 3 | . 1 . 1 . 1 . . . Fabricator Hacks . | . . . . . . . . . Repair Station Hacks . | . . . . . . . . . Recycling Unit Hacks . | . . . . . . . . . Scanalyzer 2 | . . . . . 2 . . . Insert Component 1 | . . . . . 1 . . . Analyze 1 | . . . . . 1 . . . Garrison Access Hacks 1 | . . . . . . 1 . . Seal Access 1 | . . . . . . 1 . . Unauthorized Hacks . | . . . . . . . . . Terminals . | . . . . . . . . . Fabricators . | . . . . . . . . . Repair Stations . | . . . . . . . . . Recycling Units . | . . . . . . . . . Scanalyzers . | . . . . . . . . . Garrison Access . | . . . . . . . . . Data Cores Recovered 1 | . . . 1 . . . . . Used . | . . . . . . . . . Hacking Detections 4 | . . . 1 . 1 2 . . Full Trace Events 2 | . . . 1 . . 1 . . Feedback Events . | . . . . . . . . . Feedback Blocked . | . . . . . . . . . Robot Schematics Acquired . | . . . . . . . . . Robots Built . | . . . . . . . . . Authchips . | . . . . . . . . . Time . | . . . . . . . . . Total Robot Build Rating . | . . . . . . . . . Part Schematics Acquired 1 | . . . . . 1 . . . Parts Built . | . . . . . . . . . Authchips . | . . . . . . . . . Time . | . . . . . . . . . Total Part Build Rating . | . . . . . . . . . Parts Repaired . | . . . . . . . . . Time . | . . . . . . . . . Parts Recycled . | . . . . . . . . . Recycled Matter . | . . . . . . . . . Retrieved Matter . | . . . . . . . . . Retrieved Components . | . . . . . . . . . Parts Scanalyzed 1 | . . . . . 1 . . . Part Schematics Acquired 1 | . . . . . 1 . . . Parts Damaged . | . . . . . . . . . Bothacking | -11 -10 -10 -9 -9 -8 -8 -7 -7 ------------ Run | Yrd Mat Min Mat Min Mat Sto Fac DSF Used RIF Installer . | . . . . . . . . . Robots Hacked . | . . . . . . . . . Non-combat . | . . . . . . . . . Combat . | . . . . . . . . . Robot Hacks Applied . | . . . . . . . . . Relay Couplers Released . | . . . . . . . . . Fabnet Peak Effective % . | . . . . . . . . . Robots Rewired . | . . . . . . . . . Allies Hacked . | . . . . . . . . . Hacks Repelled . | . . . . . . . . . Allies | -11 -10 -10 -9 -9 -8 -8 -7 -7 -------- Run | Yrd Mat Min Mat Min Mat Sto Fac DSF Total Allies 5 | . . . . 3 . 2 . . Largest Group 3 | . . . . 3 2 3 . . Highest-Rated Group 73 | . . . . 73 42 73 . . Highest-Rated Ally 31 | . . . . 31 31 31 . . Total Orders . | . . . . . . . . . Ally Attacks 20 | . . . . . 10 10 . . Total Damage 313 | . . . . . 126 187 . . Kills 2 | . . . . . 2 . . . Allies Corrupted 1 | . . . . . . 1 . . Allies Melted . | . . . . . . . . . Intel | -11 -10 -10 -9 -9 -8 -8 -7 -7 ------- Run | Yrd Mat Min Mat Min Mat Sto Fac DSF Robot Analysis Total . | . . . . . . . . . Derelict Logs Recovered 1 | . . . . 1 . . . . Drone Launches . | . . . . . . . . . Drone Recoveries . | . . . . . . . . . Exploration | -11 -10 -10 -9 -9 -8 -8 -7 -7 ------------- Run | Yrd Mat Min Mat Min Mat Sto Fac DSF Turns Passed 2478 | 86 435 142 453 368 287 613 7 87 Spaces Moved 1815 | 67 290 61 317 296 174 510 12 88 Core 187 | 10 . . . . . 104 12 61 Treads . | . . . . . . . . . Legs 1466 | 57 290 61 317 296 174 271 . . Wheels . | . . . . . . . . . Hover . | . . . . . . . . . Flight 162 | . . . . . . 135 . 27 Fastest Speed 31 | 50 120 120 120 120 120 37 50 31 Average Speed 110 | 111 120 168 120 120 144 85 50 68 Slowest Speed 190 | 120 120 190 120 120 190 150 50 150 Overloaded Moves . | . . . . . . . . . Propulsion Burnouts . | . . . . . . . . . Robots Hopped 1 | . . . . . . 1 . . Cave-ins Triggered 1 | . 1 . . . . . . . Exploration Rate (%) 37 | 5 36 16 31 58 17 54 . 82 Regions Visited 8 Branch Regions 3 Pre-discovered Areas 1 | . . . . 1 . . . . Known Exits Taken 3 | . . . . . 1 1 1 . Unknown Exits Taken 5 | 1 1 1 1 1 . . . . Scrap Searched 1 | . . . . 1 . . . . Spaces Dug . | . . . . . . . . . Terrain Destroyed 229 | . 52 . 17 26 56 78 . . Melee . | . . . . . . . . . Projectile . | . . . . . . . . . AOE 229 | . 52 . 17 26 56 78 . . Terrain Rammed . | . . . . . . . . . Walls Destroyed . | . . . . . . . . . Machines Disabled . | . . . . . . . . . Actions | -11 -10 -10 -9 -9 -8 -8 -7 -7 --------- Run | Yrd Mat Min Mat Min Mat Sto Fac DSF Total 2142 | 75 338 85 361 306 197 653 12 115 Wait 104 | . . 6 . . . 92 . 6 Move 1805 | 66 289 60 316 295 173 507 11 88 Hop 1 | . . . . . . 1 . . Pick Up 27 | 2 5 . 8 4 2 1 . 5 Fast Attach 32 | 6 5 1 4 . 2 5 . 9 Attach 21 | . 4 1 2 . 2 7 1 4 Detach 10 | . 5 . . . 2 2 . 1 Swap 8 | 1 1 . 5 . 1 . . . Drop 21 | . 2 . 6 4 2 5 . 2 Fire 110 | . 27 15 20 3 13 32 . . Melee . | . . . . . . . . . Ram 1 | . . . . . . 1 . . Kick 2 | . . 2 . . . . . . Crush . | . . . . . . . . . Escape Stasis . | . . . . . . . . . Rewire . | . . . . . . . . . Trap . | . . . . . . . . . Miscellaneous . | . . . . . . . . . Route ------- -11/Scrapyard -10/Materials -10/Mines -9/Materials -9/Mines -8/Materials -8/Storage (discovered 2 exits: *Fac / Rec) -7/Factory -7/DSF (discovered 1 exit: [*Fac]) History --------- Turn | Location | Event 14 | -11/Scrapyard | Discovered new exit (range 15) 87 | -11/Scrapyard | Entered Materials 301 | -10/Materials | Build established: Mutant 366 | -10/Materials | Discovered new exit (range 8) 466 | -10/Materials | Crushed by falling debris 466 | -10/Materials | Core integrity fell below 50% 522 | -10/Materials | Entered Mines 523 | -10/Mines | Assembled infested the area 603 | -10/Mines | Met 8R-AWN 634 | -10/Mines | Discovered new exit (range 15) 664 | -10/Mines | Entered Materials 664 | -9/Materials | Evolved 2 slots: Propulsion x2 1088 | -9/Materials | Discovered new exit (range 15) 1117 | -9/Materials | Entered Mines 1120 | -9/Mines | Received a Mining Laser from a helpful Derelict 1404 | -9/Mines | Discovered new exit (range 9) 1485 | -9/Mines | Entered Materials 1485 | -8/Materials | Accompanied by 2 allies 1485 | -8/Materials | Evolved 2 slots: Utility x2 1490 | -8/Materials | Led the pair of lost Derelicts to an unsafe place 1715 | -8/Materials | Discovered new exit (range 16) 1770 | -8/Materials | Identified exit to Storage 1772 | -8/Materials | Entered Storage 1772 | -8/Storage | Accompanied by 1 ally 1891 | -8/Storage | Met a pair of Derelict thieves 1975 | -8/Storage | Lost 3 allies 2162 | -8/Storage | Lost 3 parts (2n1u) 2192 | -8/Storage | Identified exit to Recycling 2356 | -8/Storage | Core integrity fell below 50% 2379 | -8/Storage | Core integrity fell below 20% 2380 | -8/Storage | Discovered new exit (range 8) 2384 | -8/Storage | Identified exit to Factory 2385 | -8/Storage | Entered Factory 2385 | -7/Factory | Evolved 2 slots: Propulsion x1, Utility x1 2390 | -7/Factory | Lost 10 parts (1p5n2u2w) 2392 | -7/Factory | Identified exit to DSF 2392 | -7/Factory | Entered DSF 2409 | -7/DSF | Additional patrols routed to DSF 2431 | -7/DSF | Core integrity fell below 50% 2442 | -7/DSF | Discovered new exit (range 15) 2474 | -7/DSF | Core integrity fell below 20% 2479 | -7/DSF | Destroyed by X-62 Marksman with Pulse Rifle Last Messages --------------- Acquired Carbon-fiber Leg. Penetrated by Slug. Matter Repository disabled. Triggered Alarm Trap. An alarm sounds. X-62 Marksman springs to life. Nuclear Pulse Thruster destroyed. Dropped Carbon-fiber Leg. Acquired Imp. Titanium Leg. Dropped Carbon-fiber Leg. Acquired Imp. Titanium Leg. Penetrated by Slug. Slug penetrates Wall. Nuclear Pulse Thruster destroyed. C-30 ARC bursts open, deploying its payload. G-50 Soldier unfolds itself. G-47 Trooper unfolds itself. Penetrated by Slug. Nuclear Pulse Thruster destroyed. Penetrated by Slug. Map ----- +----------------------------------------------------+ | ??????????????????????# ###&&&#& | | ?????????????????????## ##????#? | | ?????????????????????!! //?????? | | ??????????????????????! //?????? | | ??????????????????????! /??????? | | ????????????????????### ###????? | | ????????????????????#]] !!#????? | | ????????????????????#]] !!#????? | | ?????????????????????]] ^ !!?????? | | ??????###############?# #?###### | | ?????##!! ## #!!!### ###]]]#! | | ?????? !! ## #!!!## ##]]]#! | | ?????## % | | ?????# H % | | ??????#% %% | | ??????#* ## # ##!!! ! | | ??????#** x## ### ###!!!#! | | ??????### #### #####?# #?###### | | ???????# ==####????!! ]]?????? | | ???????# ==#??????#!! ]]#????? | | ???????# ==#??????#!! ]]#????? | | ???????## ###??????### ###????? | | ???????# = =#???????? ??????? | | ???????# = =#???????? ??????? | | ???????## x###??????? ?????? | | ????????#@g#?????????## ##?????? | | ???????"" g #?????????# #??????? | | ?????""""%g ???????? ??????? | | ????"##"%< % ?????? ??????? | | ??????#""%%"## #????? [[[!??????? | | ??????#"""""#?###????? [[[!??????? | | ??????####"##?????????#####??????? | | ??????????"#?????????????????????? | | ??????????"#?????????????????????? | | ??????????##?????????????????????? | | ?????????????????????????????????? | | ?????????????????????????????????? | | ?????????????????????????????????? | | ?????????????????????????????????? | | | | | | | | | | | | | | | | | | | | | | | +----------------------------------------------------+ Best States ------------- Heat Dissipation 34 Energy Generation 15 Energy Capacity 280 Matter Stores 300 Matter Capacity 350 Sight Range 18 Robot Scan Range 15 Terrain Scan Density 10 ECM Strength 1 Jamming Range 12 Additional Mass Support 9 Utility Shielding 66 Evasion (%) 62 Targeting Accuracy 5 Item Schematics ----------------- Flight Unit | -8/Materials | Scanalyzed Robot Schematics ------------------ None Fabricated ------------ Nothing Alien Tech Used ----------------- None Achievements -------------- None Challenges ------------ None Game ------ Seed ParticleSpikedGuard Manual? 0 Play Time 00:35:26 Cumulative 14.8 hours Start 2024.04.13 @ 23:43:10 End 2024.04.14 @ 00:16:09 Sessions 1 Manual Loads 0 Difficulty Rogue Special Mode None Game No. 52 Rogue 52 Adventurer 0 Explorer 0 Win Type - Total 0 Types 0/0/0/0/0/0/0/0/0 Lore% 12 Gallery% 21 Achievement% 19 Wizard Run 0 Options --------- Layout 1 ASCII 1 Keyboard 0 Movement Arrows Keybinds 0 Fullscreen 1 Font 18/SmallcapsGlow Map View 50x40 Zoom Use 0% Tactical HUD 0 Map Filters NONE Filters NONE Steam 1 RUN: 902d2de0-ce36-45ae-8375-e7438b9caae9